bitfinex-derivatives/quotes_SOLF0:USTF0_20250924
["timestamp","ask_amount","ask_price","bid_price","bid_amount"]
[1758730370374,3.22178518,213.37,213.36,4.216]
[1758730370573,3.22178518,213.37,213.34,7.69]
[1758730370777,55.66,213.41,213.35,4.2162]
[1758730370978,12.34650443,213.4,213.34,7.69]
[1758730371176,4.39650443,213.39,213.3,7.69]
[1758730371381,12.34650443,213.38,213.3,7.69]
[1758730371583,4.39650443,213.37,213.3,7.69]
[1758730371886,3.22477859,213.36,213.29,7.69]
[1758730372093,3.22477859,213.35,213.29,7.69]
[1758730372384,3.22477859,213.34,213.28,65.6084]
[1758730372586,7.95,213.38,213.29,7.69]
[1758730372787,4.40227052,213.37,213.29,7.69]
[1758730372990,3.23045264,213.36,213.29,7.69]
[1758730373188,3.23045264,213.35,213.29,7.69]
[1758730373390,7.95,213.38,213.29,7.69]
[1758730373688,3.23177736,213.37,213.29,7.69]
[1758730373889,3.23177736,213.36,213.29,7.69]
[1758730374088,3.23177736,213.35,213.29,7.69]
[1758730374292,7.95,213.38,213.31,7.45]
[1758730374490,3.23314531,213.37,213.31,7.45]
[1758730374687,3.23314531,213.36,213.31,7.45]
[1758730374891,3.23314531,213.35,213.31,7.45]
[1758730375197,3.23463822,213.34,213.32,7.45]
[1758730375490,7.55,213.39,213.32,7.45]
[1758730375692,4.4064094,213.38,213.32,7.45]
[1758730375887,7.55,213.36,213.32,7.45]
[1758730376087,3.23462913,213.35,213.32,7.45]
[1758730376288,3.23462913,213.35,213.26,73.0642]
[1758730376484,3.23462913,213.35,213.27,7.45]
[1758730377289,3.23462913,213.35,213.33,4.2166]
[1758730377795,3.23462913,213.35,213.34,7.45]
[1758730377996,3.23462913,213.39,213.34,7.45]
[1758730378194,7.55,213.37,213.34,4.2164]
[1758730378498,3.23462913,213.36,213.3,7.45]
[1758730378984,3.23462913,213.36,213.3,65.6019]
[1758730379190,3.23462913,213.35,213.3,65.6019]
[1758730379386,3.23462913,213.34,213.28,65.609]
[1758730379594,128.6652,213.41,213.33,7.45]
[1758730379794,4.41186947,213.4,213.33,7.45]
[1758730379996,4.41186947,213.39,213.33,7.45]
[1758730380190,4.41186947,213.38,213.33,65.592]
[1758730380392,3.24009502,213.37,213.33,65.592]
[1758730380598,3.24009502,213.36,213.34,7.87]
[1758730380793,7.55,213.41,213.34,7.87]
[1758730381094,4.4124449,213.4,213.34,7.87]
[1758730381295,7.91,213.38,213.34,7.87]
[1758730381600,4.4124449,213.37,213.34,7.87]
[1758730381799,3.24077089,213.36,213.34,7.87]
[1758730382000,7.91,213.38,213.36,4.2161]
[1758730382202,7.91,213.38,213.29,65.6055]
[1758730382203,4.41149793,213.37,213.29,7.87]
[1758730382405,4.41149793,213.37,213.28,65.6067]
[1758730382406,3.23976108,213.36,213.35,12.0862]
[1758730382595,3.23976108,213.36,213.35,7.87]
[1758730382795,3.23976108,213.41,213.35,7.87]
[1758730383093,4.41144351,213.4,213.36,7.87]
[1758730383298,4.41144351,213.39,213.38,4.2156]
[1758730383499,4.41144351,213.39,213.36,7.87]
[1758730383698,4.41144351,213.38,213.32,7.87]
[1758730383902,4.41148952,213.37,213.29,7.87]
[1758730384099,3.23976108,213.36,213.32,7.87]
[1758730384303,132.38817549,213.42,213.35,7.87]
[1758730384304,128.17327549,213.42,213.35,7.87]
[1758730384603,4.41249329,213.41,213.35,7.87]
[1758730384915,4.41249329,213.4,213.39,4.2153]
[1758730385204,3.24076288,213.4,213.39,12.0853]
[1758730385595,3.24076288,213.4,213.39,4.2153]
[1758730386402,3.24076288,213.4,213.37,4.2158]
[1758730386604,3.24076288,213.39,213.37,4.2158]
[1758730386795,3.24076288,213.38,213.31,73.4694]
[1758730387002,3.24076288,213.38,213.36,4.216]
[1758730387908,3.24076288,213.37,213.36,4.216]
[1758730388102,11.29327549,213.43,213.36,7.87]
[1758730388304,118.03162788,213.42,213.36,7.87]
[1758730388506,1.17158985,213.41,213.35,65.587]
[1758730388700,116.86,213.42,213.36,7.87]
[1758730388901,9.08158985,213.41,213.36,7.87]
[1758730389110,1.17158985,213.4,213.36,7.87]
[1758730389310,7.91,213.4,213.38,4.2156]
[1758730390008,7.91,213.45,213.4,4.2152]
[1758730390310,118.03162758,213.44,213.36,7.87]
[1758730390510,1.17162758,213.43,213.36,7.87]
[1758730390711,1.17162758,213.42,213.36,7.87]
[1758730390907,7.91,213.45,213.38,65.5779]
[1758730391105,1.17148852,213.44,213.39,7.87]
[1758730391301,116.86,213.46,213.38,73.4479]
[1758730391505,1.17144128,213.45,213.38,73.4479]
[1758730391702,1.17144128,213.44,213.38,7.87]
[1758730391907,116.86,213.46,213.38,7.87]
[1758730392105,1.17144142,213.45,213.38,73.4474]
[1758730392415,1.17144142,213.44,213.38,73.4474]
[1758730392709,116.86,213.46,213.27,8.4357]
[1758730393018,7.91,213.42,213.31,65.5992]
[1758730393210,1.17144128,213.41,213.32,7.87]
[1758730393411,86.47144128,213.41,213.38,4.2156]
[1758730393615,1.17144128,213.4,213.38,4.2156]
[1758730393817,1.17144128,213.4,213.35,4.2161]
[1758730394007,9.08144128,213.4,213.35,4.2161]
[1758730394205,1.17144128,213.39,213.35,4.2161]
[1758730394410,9.08144128,213.39,213.35,4.2161]
[1758730394710,91.21103231,213.51,213.35,4.2161]
[1758730394711,7.91,213.66,213.54,65.5266]
[1758730394918,7.91,213.66,213.58,3.38327549]
[1758730395113,7.91,213.66,213.59,4.2115]
[1758730395812,7.91,213.66,213.61,4.2112]
[1758730396019,118.06,213.69,213.62,13.09446273]
[1758730396220,118.06,213.69,213.63,5.22446273]
[1758730396416,125.97,213.69,213.64,5.22446273]
[1758730396617,7.91,213.69,213.65,5.22446273]
[1758730396919,7.91,213.69,213.63,4.2107]
[1758730397515,7.91,213.69,213.62,7.87]
[1758730397819,7.91,213.69,213.63,4.19743824]
[1758730398014,94.58,213.7,213.64,4.19743824]
[1758730398211,7.91,213.69,213.65,4.19743824]
[1758730398413,7.91,213.69,213.66,4.19743824]
[1758730398617,7.91,213.69,213.6,4.2112]
[1758730398819,7.91,213.69,213.61,4.19192531]
[1758730399014,7.91,213.69,213.51,4.213]
[1758730399015,3.38327549,213.64,213.51,4.213]
[1758730399228,7.91,213.56,213.52,4.02811951]
[1758730399415,7.91,213.54,213.42,3.38327549]
[1758730399619,7.91,213.54,213.43,4.2147]
[1758730400021,3.38327549,213.53,213.41,7.87]
[1758730400322,7.59607549,213.53,213.42,4.2149]
[1758730400620,4.2128,213.53,213.42,4.2149]
[1758730401024,7.91,213.5,213.39,4.2155]
[1758730401526,67.04,213.49,213.41,7.87]
[1758730402323,102.1,213.5,213.45,12.0843]
[1758730402522,118.42,213.52,213.45,7.87]
[1758730402721,118.42,213.52,213.49,4.2135]
[1758730403022,118.42,213.52,213.49,12.0835]
[1758730403520,118.44,213.56,213.49,12.0835]
[1758730404020,7.58,213.55,213.42,4.2149]
[1758730404615,7.58,213.53,213.42,4.2149]
[1758730405416,7.58,213.53,213.39,7.54]
[1758730405417,7.58,213.53,213.44,4.2145]
[1758730406627,1.17126218,213.52,213.44,4.2145]
[1758730406926,1.17126218,213.51,213.44,4.2145]
[1758730407119,1.17126218,213.5,213.44,4.2145]
[1758730407319,1.17126218,213.49,213.44,4.2145]
[1758730407527,1.17126218,213.48,213.44,4.2145]
[1758730407721,7.58,213.53,213.46,11.7541]
[1758730407722,1.17126218,213.47,213.46,11.7541]
[1758730408027,4.733e-05,213.47,213.46,11.7541]
[1758730408225,119.42,213.55,213.46,11.7541]
[1758730408524,119.44,213.57,213.46,7.54]
[1758730408923,119.44,213.57,213.47,65.5505]
[1758730409229,119.46,213.58,213.5,7.54]
[1758730409828,127.04,213.58,213.49,4.2134]
[1758730410221,127.04,213.58,213.45,11.7541]
[1758730410520,127.04,213.58,213.45,7.54]
[1758730411330,127.04,213.58,213.46,4.2141]
[1758730412432,127.04,213.58,213.45,7.54]
[1758730412433,4.2125,213.55,213.45,7.54]
[1758730412828,7.58,213.54,213.45,7.54]
[1758730413026,4.2128,213.53,213.43,4.2146]
[1758730413224,7.58,213.54,213.4,4.2151]
[1758730413225,73.1101,213.54,213.4,4.2151]
[1758730413425,7.58,213.54,213.4,4.2151]
[1758730413631,71.42,213.54,213.42,7.54]
[1758730413833,71.42,213.54,213.43,4.2145]
[1758730414130,7.58,213.6,213.45,65.5557]
[1758730414334,7.58,213.6,213.5,73.0814]
[1758730414635,67.1,213.61,213.51,7.54]
[1758730414830,127.04,213.6,213.46,65.5523]
[1758730415131,127.04,213.6,213.5,4.2132]
[1758730415525,7.58,213.6,213.52,4.2129]
[1758730415725,92.44,213.61,213.51,65.5374]
[1758730416337,92.44,213.61,213.55,4.2122]
[1758730417823,119.46,213.62,213.57,4.212]
[1758730418030,127.04,213.62,213.57,4.212]
[1758730418234,7.58,213.61,213.57,4.212]
[1758730418537,7.58,213.61,213.5,7.54]
[1758730418732,4.2118,213.58,213.44,7.54]
[1758730418940,8.75089534,213.57,213.44,7.54]
[1758730419132,1.17089534,213.56,213.48,4.2136]
[1758730419330,88.32,213.55,213.48,4.2136]
[1758730419833,7.58,213.54,213.46,4.2141]
[1758730420028,7.58,213.54,213.44,7.54]
[1758730420231,1.17098834,213.53,213.48,4.2138]
[1758730420439,1.17098834,213.52,213.48,4.2138]
[1758730420733,1.17098834,213.51,213.48,4.2138]
[1758730420937,7.58,213.54,213.48,4.2138]
[1758730421238,1.17097579,213.53,213.48,4.2138]
[1758730421435,1.17097579,213.52,213.48,4.2138]
[1758730421639,1.17097579,213.51,213.48,4.2138]
[1758730421937,7.58,213.54,213.48,4.2138]
[1758730422136,1.1709922,213.53,213.48,4.2138]
[1758730422340,1.1709922,213.52,213.48,4.2138]
[1758730422539,1.1709922,213.51,213.5,4.2134]
[1758730422738,119.38,213.55,213.51,7.54]
[1758730423042,1.1708884,213.54,213.51,11.753]
[1758730423242,1.1708884,213.53,213.51,11.753]
[1758730423535,126.98,213.58,213.51,11.753]
[1758730423735,2.3417677,213.57,213.51,11.753]
[1758730423934,2.3417677,213.56,213.51,11.753]
[1758730424135,126.98,213.58,213.51,11.753]
[1758730424136,1.17088385,213.55,213.51,11.753]
[1758730424339,1.17088385,213.54,213.51,11.753]
[1758730424538,126.9,213.58,213.51,11.753]
[1758730424842,4.2114,213.61,213.51,11.753]
[1758730424843,1.17076483,213.57,213.51,65.5364]
[1758730425043,7.58,213.63,213.52,7.54]
[1758730425242,2.34119034,213.62,213.55,4.2122]
[1758730425441,7.58,213.63,213.52,7.54]
[1758730425442,1.17059517,213.61,213.52,7.54]
[1758730425637,1.17059517,213.6,213.52,7.54]
[1758730425938,1.17059517,213.59,213.53,7.54]
[1758730426146,1.17059517,213.58,213.56,7.54]
[1758730426445,1.17060195,213.57,213.49,73.084]
[1758730426742,7.58,213.63,213.49,73.084]
[1758730426937,2.34125856,213.62,213.54,4.2125]
[1758730427245,2.34125856,213.61,213.54,4.2125]
[1758730427444,7.58,213.59,213.49,7.54]
[1758730427740,1.17062928,213.58,213.49,73.0843]
[1758730427937,1.17062928,213.58,213.47,65.5501]
[1758730428139,1.17062928,213.57,213.52,65.535]
[1758730428331,7.58,213.64,213.53,7.54]
[1758730428530,121.68124,213.63,213.53,7.54]
[1758730428734,2.34124,213.62,213.53,7.54]
[1758730428938,2.34124,213.61,213.53,7.54]
[1758730429139,1.17062,213.6,213.53,7.54]
[1758730429342,1.17062,213.59,213.56,4.2122]
[1758730429540,119.32,213.62,213.56,4.2122]
[1758730429541,1.17062,213.58,213.56,4.2122]
[1758730429740,1.17062,213.57,213.56,11.7522]
[1758730430336,7.58,213.64,213.59,4.2115]
[1758730430537,121.58111546,213.63,213.59,4.2115]
[1758730430735,1.17054953,213.62,213.59,4.2115]
[1758730431142,1.17054953,213.62,213.61,7.54]
[1758730431334,1.17046141,213.62,213.61,7.54]
[1758730431538,460.34,213.66,213.61,7.54]
[1758730431740,1.17045687,213.65,213.61,7.54]
[1758730431941,1.17045687,213.64,213.61,7.54]
[1758730432138,1.17045687,213.63,213.61,7.54]
[1758730432343,467.92,213.66,213.57,7.54]
[1758730432544,1.17042305,213.65,213.57,7.54]
[1758730432744,1.17042305,213.64,213.57,7.54]
[1758730432938,1.17042305,213.63,213.57,7.54]
[1758730433135,467.92,213.66,213.57,7.54]
[1758730433341,1.17042333,213.65,213.57,7.54]
[1758730433643,1.17042333,213.64,213.58,65.5169]
[1758730433837,1.17042333,213.63,213.58,65.5169]
[1758730434043,467.92,213.66,213.63,4.2106]
[1758730434245,1.17042305,213.65,213.63,4.2106]
[1758730434442,467.92,213.66,213.62,4.2108]
[1758730434443,1.17042305,213.64,213.62,4.2108]
[1758730434646,119.06,213.68,213.63,7.81]
[1758730434841,1.17031969,213.67,213.62,65.5042]
[1758730435050,119.04,213.7,213.68,4.2098]
[1758730435247,1.17016526,213.69,213.68,4.2098]
[1758730436047,1.17016526,213.69,213.66,4.2102]
[1758730436247,1.17016526,213.68,213.66,4.2102]
[1758730436450,1.17016526,213.67,213.61,7.81]
[1758730436749,7.72,213.69,213.65,4.2104]
[1758730436944,8.89017006,213.68,213.65,4.2104]
[1758730437150,7.72,213.76,213.64,7.81]
[1758730437345,120.15002406,213.75,213.64,7.81]
[1758730437653,7.72,213.73,213.59,13.74379708]
[1758730437855,7.72,213.71,213.62,4.2108]
[1758730438054,1.17002406,213.7,213.62,4.2108]
[1758730438249,1.17002406,213.7,213.62,7.81]
[1758730438449,66.78,213.69,213.62,7.81]
[1758730438649,1.17002406,213.68,213.65,4.2102]
[1758730439449,340.92,213.78,213.65,4.2102]
[1758730439450,7.72,213.76,213.65,65.4949]
[1758730439652,120.19000398,213.75,213.66,7.81]
[1758730439956,8.56000398,213.74,213.69,4.2094]
[1758730440149,8.56000398,213.73,213.69,4.2094]
[1758730440347,1.17000398,213.72,213.67,4.2099]
[1758730440551,7.39,213.7,213.67,4.2099]
[1758730440750,1.17000398,213.69,213.67,4.2099]
[1758730441352,1.17000398,213.69,213.61,72.9171]
[1758730441353,1.17000398,213.68,213.61,7.41]
[1758730441555,1.17009166,213.67,213.61,7.41]
[1758730441759,7.39,213.7,213.61,7.41]
[1758730441951,1.17012929,213.69,213.61,7.41]
[1758730442155,1.17012929,213.68,213.61,7.41]
[1758730442350,1.17022166,213.67,213.61,7.41]
[1758730442547,2.34035095,213.66,213.61,7.41]
[1758730442759,2.34035095,213.65,213.61,7.41]
[1758730442948,93.53,213.69,213.56,66.25581348]
[1758730442949,1.17022166,213.64,213.62,4.2109]
[1758730443152,93.53,213.69,213.62,11.6209]
[1758730443352,2.3404421,213.68,213.62,11.6209]
[1758730443553,2.3404421,213.67,213.6,4.2113]
[1758730443753,2.3404421,213.66,213.58,7.41]
[1758730443950,2.3404421,213.65,213.6,65.5109]
[1758730444162,181.94611026,213.75,213.67,4.21]
[1758730444163,60.06,213.71,213.67,4.21]
[1758730444360,1.17012866,213.7,213.67,4.21]
[1758730444558,1.17012866,213.69,213.67,4.21]
[1758730444763,1.17012866,213.68,213.67,4.21]
[1758730445266,181.94611026,213.75,213.65,7.41]
[1758730445473,1.17004559,213.74,213.65,7.41]
[1758730445663,1.1699871,213.73,213.66,65.4916]
[1758730445864,1.1699871,213.72,213.71,11.6191]
[1758730446162,1.1699871,213.72,213.64,7.41]
[1758730446362,1.1699871,213.71,213.66,4.21]
[1758730446557,1.1699871,213.7,213.66,4.21]
[1758730446769,119.04,213.73,213.66,4.21]
[1758730446965,1.17002515,213.72,213.66,4.21]
[1758730447165,8.56002515,213.71,213.66,4.21]
[1758730447366,1.17002515,213.7,213.66,4.21]
[1758730447563,8.56002515,213.7,213.64,4.2105]
[1758730447763,12.76972515,213.69,213.58,7.41]
[1758730448073,1.17002515,213.68,213.58,7.41]
[1758730449269,1.17002515,213.68,213.6,4.2114]
[1758730449466,5.37992515,213.68,213.6,4.2114]
[1758730449665,1.17002515,213.67,213.6,4.2114]
[1758730449866,118.96,213.66,213.58,7.41]
[1758730450062,1.17002515,213.65,213.58,7.41]
[1758730451470,1.17002515,213.65,213.61,4.211]
[1758730451866,8.56002515,213.65,213.61,4.211]
[1758730452066,1.17002515,213.64,213.61,4.211]
[1758730452269,8.56002515,213.64,213.61,4.211]
[1758730452571,1.17002515,213.63,213.61,4.211]
[1758730454270,7.39,213.64,213.61,4.211]
[1758730454470,8.56042277,213.63,213.51,7.41]
[1758730454674,12.71279913,213.61,213.51,7.41]
[1758730454874,111.85042277,213.6,213.51,7.41]
[1758730455174,1.17042277,213.59,213.51,11.6231]
[1758730455466,7.39,213.58,213.46,7.41]
[1758730455671,1.17042277,213.57,213.46,7.41]
[1758730456174,7.39,213.55,213.49,4.2134]
[1758730456478,7.39,213.53,213.49,4.2134]
[1758730456774,2.34185012,213.52,213.47,4.2139]
[1758730456966,2.34219126,213.51,213.47,4.2139]
[1758730457167,126.75,213.53,213.47,4.2139]
[1758730457367,2.34219363,213.52,213.45,4.2143]
[1758730457569,2.34219363,213.51,213.45,4.2143]
[1758730457771,2.34219363,213.5,213.45,4.2143]
[1758730457975,126.75,213.53,213.45,4.2143]
[1758730458177,2.34227048,213.52,213.43,4.2147]
[1758730458379,7.39,213.5,213.38,21.26144553]
[1758730458681,7.39,213.5,213.39,65.5749]
[1758730458682,2.34227048,213.49,213.39,65.5749]
[1758730458977,2.34227048,213.48,213.38,7.41]
[1758730459178,2.34227048,213.47,213.42,4.2149]
[1758730459469,110.38,213.49,213.42,4.2149]
[1758730459781,2.3425762,213.48,213.42,4.2149]
[1758730459969,2.3425762,213.47,213.42,11.6249]
[1758730460166,7.39,213.5,213.44,4.2145]
[1758730460469,83.1,213.49,213.45,7.41]
[1758730460678,12.52451496,213.64,213.47,65.5511]
[1758730460971,121.68143796,213.63,213.49,65.5433]
[1758730461179,2.34143796,213.62,213.49,65.5433]
[1758730461371,7.39,213.6,213.48,7.41]
[1758730461568,2.34143796,213.59,213.49,4.2135]
[1758730461767,2.34143796,213.58,213.49,4.2135]
[1758730461967,2.34143796,213.57,213.49,4.2135]
[1758730462174,2.34143796,213.56,213.51,4.2131]
[1758730462475,2.34143796,213.55,213.51,4.2131]
[1758730462677,7.39,213.6,213.51,4.2131]
[1758730462973,2.34179976,213.59,213.51,4.2131]
[1758730463173,2.34179976,213.58,213.51,4.2131]
[1758730463476,2.34179976,213.57,213.51,4.2131]
[1758730463677,2.34179976,213.56,213.51,4.2131]
[1758730463872,2.34179976,213.55,213.51,4.2131]
[1758730464073,7.39,213.6,213.51,4.2131]
[1758730464274,2.34179916,213.59,213.51,4.2131]
[1758730464574,2.34179916,213.58,213.51,4.2131]
[1758730464769,2.34179916,213.57,213.51,4.2131]
[1758730464965,7.75,213.55,213.43,7.36]
[1758730465172,121.56179916,213.54,213.43,7.36]
[1758730465372,2.34179916,213.53,213.43,7.36]
[1758730465573,2.34179916,213.52,213.43,7.36]
[1758730465775,2.34179916,213.51,213.43,7.36]
[1758730466074,7.75,213.55,213.44,65.5599]
[1758730466277,1.17111014,213.54,213.47,7.36]
[1758730466480,119.38,213.57,213.47,7.36]
[1758730466684,2.3419,213.56,213.47,7.36]
[1758730466868,2.3419,213.55,213.47,7.36]
[1758730467074,119.38,213.57,213.47,7.36]
[1758730467275,2.34191658,213.56,213.47,7.36]
[1758730467476,2.34191658,213.55,213.47,7.36]
[1758730467676,2.34191658,213.54,213.41,7.36]
[1758730467884,2.34191658,213.53,213.41,7.36]
[1758730468073,7.75,213.55,213.41,7.36]
[1758730468274,2.3421421,213.54,213.41,7.36]
[1758730468475,2.3421421,213.53,213.41,7.36]
[1758730468770,7.75,213.55,213.41,7.36]
[1758730468969,2.34214254,213.54,213.43,7.36]
[1758730469182,2.34214254,213.53,213.43,7.36]
[1758730469473,7.75,213.55,213.43,7.36]
[1758730469678,2.34214226,213.54,213.43,7.36]
[1758730469879,2.34214226,213.53,213.43,7.36]
[1758730470180,7.75,213.55,213.46,4.214]
[1758730470381,2.34213514,213.54,213.46,4.214]
[1758730470581,2.34213514,213.53,213.46,4.214]
[1758730470875,7.75,213.55,213.47,4.2138]
[1758730471075,65.4938,213.66,213.47,7.36]
[1758730471076,58.72,213.59,213.47,7.36]
[1758730471379,2.34185246,213.58,213.47,7.36]
[1758730471578,2.34185246,213.57,213.47,7.36]
[1758730471775,58.72,213.59,213.51,4.213]
[1758730471976,2.34176282,213.58,213.51,4.213]
[1758730472184,1.17088141,213.57,213.51,4.213]
[1758730472370,127.05,213.6,213.52,4.2128]
[1758730472568,127.01,213.6,213.52,4.2128]
[1758730472779,2.34164677,213.59,213.52,4.2128]
[1758730472971,127.01,213.6,213.48,65.5466]
[1758730473283,119.26,213.6,213.54,4.2125]
[1758730473475,119.24,213.61,213.54,4.2125]
[1758730473676,2.34145282,213.6,213.51,4.213]
[1758730473875,123.4512,213.61,213.51,4.213]
[1758730474079,2.34147852,213.6,213.51,4.213]
[1758730474281,123.4512,213.61,213.51,4.213]
[1758730474483,2.34147852,213.6,213.51,4.213]
[1758730474781,123.4512,213.61,213.51,4.213]
[1758730474974,2.34147052,213.6,213.51,4.213]
[1758730475178,123.4512,213.61,213.51,4.213]
[1758730475380,2.34147852,213.6,213.51,4.213]
[1758730475575,119.24,213.61,213.51,4.213]
[1758730475882,4.2102,213.66,213.52,7.36]
[1758730476084,4.2102,213.66,213.51,65.5387]
[1758730476085,2.34120044,213.65,213.54,7.36]
[1758730476284,7.75,213.67,213.57,7.36]
[1758730477484,2.34064482,213.66,213.58,4.2116]
[1758730477776,2.34064482,213.65,213.58,4.2116]
[1758730477976,7.75,213.67,213.58,4.2116]
[1758730478177,6.55123688,213.66,213.58,4.2116]
[1758730478378,2.34093688,213.65,213.58,4.2116]
[1758730478683,4.2103,213.66,213.58,4.2116]
[1758730478886,2.34093568,213.65,213.58,4.2116]
[1758730479088,2.34096048,213.64,213.57,7.36]
[1758730479287,4.2103,213.66,213.57,7.36]
[1758730479487,6.55156164,213.65,213.57,7.36]
[1758730479684,2.34096164,213.64,213.53,4.2126]
[1758730479885,7.75,213.63,213.52,7.36]
[1758730480287,2.34122499,213.62,213.52,7.36]
[1758730480488,97.62122499,213.61,213.52,7.36]
[1758730480789,95.28,213.61,213.52,7.36]
[1758730482192,99.4914,213.61,213.52,11.5728]
[1758730483086,1.17068215,213.6,213.52,7.36]
[1758730483292,11.9616,213.59,213.47,8.1104413]
[1758730483785,4.2119,213.58,213.47,8.1104413]
[1758730484688,4.2119,213.58,213.46,65.553]
[1758730484689,10.09171724,213.57,213.4,65.5718]
[1758730484888,2.34171724,213.56,213.42,7.36]
[1758730485084,7.75,213.54,213.42,7.36]
[1758730485284,45.28,213.53,213.46,4.214]
[1758730485481,45.28,213.53,213.43,65.5632]
[1758730485684,74.56,213.56,213.44,7.36]
[1758730485991,2.34185582,213.55,213.44,7.36]
[1758730486181,74.56,213.56,213.44,7.36]
[1758730486485,2.34185644,213.55,213.44,7.36]
[1758730486692,74.56,213.56,213.44,7.36]
[1758730486887,6.55435582,213.55,213.48,4.2136]
[1758730487094,2.34193122,213.54,213.48,4.2136]
[1758730487294,4.2125,213.55,213.48,4.2136]
[1758730488998,1.17092791,213.54,213.48,4.2136]
[1758730489301,4.2125,213.55,213.46,4.2141]
[1758730489495,82.31,213.56,213.46,4.2141]
[1758730489496,4.2128,213.53,213.46,4.2141]
[1758730491092,1.1709749,213.52,213.47,4.2138]
[1758730491390,82.31,213.56,213.47,4.2138]
[1758730491597,2.34187468,213.55,213.47,4.2138]
[1758730491791,2.34187468,213.54,213.47,4.2138]
[1758730491993,2.34187468,213.53,213.47,4.2138]
[1758730492194,1.17093734,213.52,213.47,11.5738]
[1758730492393,1.17093734,213.51,213.47,11.5738]
[1758730492696,82.31,213.56,213.47,11.5738]
[1758730492895,2.34195008,213.55,213.47,11.5738]
[1758730493091,4.2129,213.53,213.47,7.36]
[1758730493296,2.34195008,213.52,213.47,7.36]
[1758730493497,1.17097504,213.51,213.47,7.36]
[1758730493798,1.17097504,213.5,213.47,7.36]
[1758730494001,118.9,213.55,213.47,11.5739]
[1758730494299,2.34195008,213.54,213.47,11.5739]
[1758730494497,2.34195008,213.53,213.47,11.5739]
[1758730494699,2.34195008,213.52,213.48,7.79]
[1758730494901,1.17097504,213.51,213.48,7.79]
[1758730495093,130.7622,213.56,213.48,12.0036]
[1758730495396,2.34187324,213.55,213.48,12.0036]
[1758730495597,2.34187324,213.54,213.48,12.0036]
[1758730495796,2.34187352,213.53,213.49,7.79]
[1758730495998,2.34187352,213.52,213.49,7.79]
[1758730496197,1.1709369,213.51,213.49,7.79]
[1758730496398,130.7622,213.56,213.49,7.79]
[1758730496596,4.2128,213.53,213.44,7.79]
[1758730496798,2.34187394,213.52,213.44,7.79]
[1758730496994,2.34187394,213.51,213.44,7.79]
[1758730497200,2.34187394,213.5,213.44,7.79]
[1758730497400,1.17093704,213.49,213.44,12.0044]
[1758730497601,1.17093704,213.48,213.45,7.79]
[1758730497802,4.2128,213.53,213.45,7.79]
[1758730498103,2.34213414,213.52,213.45,7.79]
[1758730498302,2.34213414,213.51,213.45,7.79]
[1758730498604,2.34213414,213.5,213.44,12.0044]
[1758730498904,126.36,213.54,213.42,4.2149]
[1758730498905,7.5,213.48,213.42,4.2149]
[1758730499100,2.34213445,213.47,213.42,12.0049]
[1758730499300,1.17106707,213.46,213.42,12.0049]
[1758730499494,1.17106707,213.45,213.42,12.0049]
[1758730499698,7.5,213.48,213.42,12.0049]
[1758730499900,2.3424328,213.47,213.42,12.0049]
[1758730500100,1.1712164,213.46,213.42,7.79]
[1758730500295,1.1712164,213.46,213.4,4.2153]
[1758730500505,2.3425165,213.45,213.4,4.2153]